fUSD/lending_fUSD_20260429
["ID","MTS","AMOUNT","RATE_DAILY","PERIOD"]
[421306294,1777400990333,-500.0,0.00042542,120]
[421306295,1777400990380,-500.0,0.00042542,120]
[421306296,1777400990426,-191.55288535,0.00042542,120]
[421306297,1777400990472,-500.0,0.00042542,120]
[421306298,1777400990518,-500.0,0.00042542,120]
[421306299,1777400990566,-500.0,0.00042542,120]
[421306300,1777400990614,-500.0,0.00042542,120]
[421306301,1777400990659,-500.0,0.00042542,120]
[421306302,1777400990706,-500.0,0.00042542,120]
[421306303,1777400990751,-500.0,0.00042542,120]
[421306304,1777400990796,-500.0,0.00042542,120]
[421306305,1777400990843,-641.56845386,0.00042542,120]
[421306306,1777400990894,-509.09442145,0.00042542,120]
[421306307,1777400990940,-500.0,0.00042542,120]
[421306308,1777400990986,-500.0,0.00042542,120]
[421306309,1777400991032,-500.0,0.00042542,120]
[421306310,1777400991079,-500.0,0.00042542,120]
[421306311,1777400991125,-510.15063593,0.00042542,120]
[421306312,1777400991171,-500.0,0.00042542,120]
[421306313,1777400991218,-500.0,0.00042542,120]
[421306314,1777400991265,-500.0,0.00042542,120]
[421306315,1777400991312,-500.0,0.00042542,120]
[421306316,1777400991358,-500.0,0.00042542,120]
[421306317,1777400991405,-487.95145509,0.00042542,120]
[421306318,1777400991451,-500.0,0.00042542,120]
[421306319,1777400991497,-571.46586257,0.00042542,120]
[421306320,1777400991555,-500.0,0.00042542,120]
[421306321,1777400991603,-404.51452196,0.00042542,120]
[421306322,1777400991648,-614.57229381,0.00042542,120]
[421306323,1777400991699,-500.0,0.00042542,120]
[421306324,1777400991744,-361.99577246,0.00042542,120]
[421306325,1777400991790,-500.0,0.00042542,120]
[421306326,1777400991836,-500.00000001,0.00042542,120]
[421306327,1777400991883,-500.0,0.00042542,120]
[421306328,1777400991928,-500.0,0.00042542,120]
[421306329,1777400991973,-500.0,0.00042542,120]
[421306330,1777400992018,-500.0,0.00042542,120]
[421306331,1777400992064,-561.51218887,0.00042542,120]
[421306332,1777400992112,-526.30762254,0.00042542,120]
[421306333,1777400992163,-500.0,0.00042542,120]
[421306334,1777400992211,-500.0,0.00042542,120]
[421306335,1777400992506,-628.86652737,0.00042542,120]
[421306336,1777400992557,-500.0,0.00042542,120]
[421306337,1777400992605,-500.0,0.00042542,120]
[421306338,1777400992652,-500.0,0.00042542,120]
[421306339,1777400992703,-500.0,0.00042542,120]
[421306340,1777400992751,-500.0,0.00042542,120]
[421306341,1777400992798,-234.01500323,0.00042542,120]
[421306342,1777400992844,-164.87558975,0.00042542,120]
[421306343,1777400992892,-500.0,0.00042542,120]
[421306344,1777400992939,-151.26,0.00042542,30]
[421306345,1777400992986,-478.08,0.00042542,30]
[421306346,1777400993033,-577.01,0.00042542,30]
[421306347,1777400993081,-151.0,0.00042542,30]
[421306348,1777400993128,-500.0,0.00042542,120]
[421306349,1777400993176,-500.0,0.00042542,120]
[421306350,1777400993224,-500.0,0.00042542,120]
[421306351,1777400993276,-262.11982935,0.00042542,120]
[421306352,1777400993328,-500.0,0.00042542,120]
[421306353,1777400993378,-500.0,0.00042542,120]
[421306354,1777400993425,-190.07363802,0.00042542,120]
[421306355,1777400993474,-625.96,0.00042542,120]
[421306356,1777400993521,-625.96,0.00042542,120]
[421306357,1777400993569,-625.96,0.00042542,120]
[421306358,1777400993615,-625.96,0.00042542,120]
[421306359,1777400993659,-625.96,0.00042542,120]
[421306360,1777400993704,-625.96,0.00042542,120]
[421306361,1777400993748,-625.96,0.00042542,120]
[421306362,1777400993794,-625.96,0.00042542,120]
[421306363,1777400993839,-625.96,0.00042542,120]
[421306364,1777400993887,-625.96,0.00042542,120]
[421306365,1777400993933,-625.96,0.00042542,120]
[421306366,1777400993978,-625.96,0.00042542,120]
[421306367,1777400994025,-625.96,0.00042542,120]
[421306368,1777400994071,-512.0325485,0.00042542,120]
[421306369,1777400994119,-625.96,0.00042542,120]
[421306370,1777400994164,-625.96,0.00042542,120]
[421306371,1777400994210,-625.96,0.00042542,120]
[421306372,1777400994256,-625.96,0.00042542,120]
[421306373,1777400994301,-625.96,0.00042542,120]
[421306374,1777400994347,-625.96,0.00042542,120]
[421306375,1777400994393,-625.96,0.00042542,120]
[421306376,1777400994440,-625.96,0.00042542,120]
[421306377,1777400994485,-625.96,0.00042542,120]
[421306378,1777400994531,-625.96,0.00042542,120]
[421306379,1777400994577,-625.97554218,0.00042542,120]
[421306380,1777400994625,-500.0,0.00042542,120]
[421306381,1777400994673,-510.49269103,0.00042542,120]
[421306382,1777400994721,-562.21704434,0.00042542,120]
[421306383,1777400994768,-548.11418354,0.00042542,120]
[421306384,1777400994815,-500.0,0.00042542,120]
[421306385,1777400994861,-458.58840461,0.00042542,120]
[421306386,1777400994907,-500.0,0.00042542,120]
[421306387,1777400994953,-500.0,0.00042542,120]
[421306388,1777400994998,-503.32060337,0.00042542,120]
[421306389,1777400995044,-500.0,0.00042542,120]
[421306390,1777400995091,-388.5574923,0.00042542,120]
[421306391,1777400995136,-500.0,0.00042542,120]
[421306392,1777400995182,-533.54754644,0.00042542,120]
[421306393,1777400995228,-500.0,0.00042542,120]
[421306394,1777400995274,-644.29,0.00042542,120]
[421306395,1777400995318,-512.36141197,0.00042542,120]
[421306396,1777400995364,-644.29,0.00042542,120]
[421306397,1777400995408,-500.0,0.00042542,120]
[421306398,1777400995453,-644.29,0.00042542,120]
[421306399,1777400995498,-500.0,0.00042542,120]
[421306400,1777400995544,-644.29,0.00042542,120]
[421306401,1777400995591,-644.29,0.00042542,120]
[421306402,1777400995638,-644.29,0.00042542,120]
[421306403,1777400995684,-644.29,0.00042542,120]
[421306404,1777400995731,-644.29,0.00042542,120]
[421306405,1777400995776,-500.0,0.00042542,120]
[421306406,1777400995823,-644.29,0.00042542,120]
[421306407,1777400995870,-644.29,0.00042542,120]
[421306408,1777400995917,-644.29,0.00042542,120]
[421306409,1777400995963,-644.29,0.00042542,120]
[421306410,1777400996008,-171.63900467,0.00042542,120]
[421306411,1777400996055,-644.29,0.00042542,120]
[421306412,1777400996101,-644.29,0.00042542,120]
[421306413,1777400996149,-644.29,0.00042542,120]
[421306414,1777400996195,-536.04503319,0.00042542,120]
[421306415,1777400996242,-644.29,0.00042542,120]
[421306416,1777400996289,-500.0,0.00042542,120]
[421306417,1777400996336,-503.20468603,0.00042542,120]
[421306418,1777400996382,-644.29,0.00042542,120]
[421306419,1777400996429,-500.0,0.00042542,120]
[421306420,1777400996477,-644.29,0.00042542,120]
[421306421,1777400996524,-500.0,0.00042542,120]
[421306422,1777400996571,-644.29,0.00042542,120]
[421306423,1777400996617,-589.39442604,0.00042542,120]
[421306424,1777400996665,-644.29,0.00042542,120]
[421306425,1777400996712,-644.29,0.00042542,120]
[421306426,1777400996758,-644.29,0.00042542,120]
[421306427,1777400996804,-644.29,0.00042542,120]
[421306428,1777400996851,-644.32947536,0.00042542,120]
[421306429,1777400996897,-500.0,0.00042542,120]
[421306430,1777400996942,-360.32493086,0.00042542,120]
[421306431,1777400996987,-505.53504614,0.00042542,120]
[421306432,1777400997030,-500.0,0.00042542,30]
[421306433,1777400997076,-208.54632362,0.00042542,30]
[421306434,1777400997122,-502.99852066,0.00042542,120]
[421306435,1777400997169,-308.65597304,0.00042542,120]
[421306436,1777400997219,-500.0,0.00042542,120]
[421306437,1777400997266,-500.0,0.00042542,120]
[421306438,1777400997314,-500.0,0.00042542,120]
[421306439,1777400997539,-439.62696237,0.00042542,120]
[421306440,1777400997588,-280.84919549,0.00042542,120]
[421306441,1777400997633,-500.0,0.00042542,120]
[421306442,1777400997679,-500.0,0.00042542,120]
[421306443,1777400997723,-500.0,0.00042542,120]
[421306444,1777400997768,-500.0,0.00042542,120]
[421306445,1777400997814,-500.0,0.00042542,120]
[421306446,1777400997860,-500.0,0.00042542,120]
[421306447,1777400997905,-500.0,0.00042542,120]
[421306448,1777400997950,-500.0,0.00042542,120]
[421306449,1777400997994,-207.01342962,0.00042542,120]
[421306450,1777400998039,-500.0,0.00042542,120]
[421306451,1777400998085,-168.72361118,0.00042542,120]
[421306452,1777400998130,-500.0,0.00042542,120]
[421306453,1777400998176,-500.0,0.00042542,120]
[421306454,1777400998221,-500.0,0.00042542,120]
[421306455,1777400998265,-303.27468391,0.00042542,120]
[421306456,1777400998309,-500.0,0.00042542,120]
[421306457,1777400998353,-500.0,0.00042542,120]
[421306458,1777400998396,-500.0,0.00042542,120]
[421306459,1777400998441,-500.0,0.00042542,120]
[421306460,1777400998485,-500.0,0.00042542,120]
[421306461,1777400998530,-500.0,0.00042542,120]
[421306462,1777400998576,-500.0,0.00042542,120]
[421306463,1777400998621,-500.0,0.00042542,120]
[421306464,1777400998667,-500.0,0.00042542,120]
[421306465,1777400998713,-500.0,0.00042542,120]
[421306466,1777400998758,-500.0,0.00042542,120]
[421306467,1777400998804,-500.0,0.00042542,120]
[421306468,1777400998850,-500.0,0.00042542,120]
[421306469,1777400998895,-187.53410069,0.00042542,120]
[421306470,1777400998939,-500.0,0.00042542,120]
[421306471,1777400998983,-500.0,0.00042542,120]
[421306472,1777400999028,-500.0,0.00042542,120]
[421306473,1777400999073,-500.0,0.00042542,120]
[421306474,1777400999119,-500.0,0.00042542,120]
[421306475,1777400999164,-500.0,0.00042542,120]
[421306476,1777400999210,-500.0,0.00042542,120]
[421306477,1777400999255,-500.0,0.00042542,120]
[421306478,1777400999301,-500.0,0.00042542,120]
[421306479,1777400999346,-291.67950753,0.00042542,120]
[421306480,1777400999391,-527.0852842,0.00042542,120]
[421306481,1777400999435,-500.0,0.00042542,120]
[421306482,1777400999480,-477.86805604,0.00042542,120]
[421306483,1777400999526,-500.0,0.00042542,120]
[421306484,1777400999571,-500.0,0.00042542,120]
[421306485,1777400999617,-423.95468511,0.00042542,120]
[421306486,1777400999663,-506.79699977,0.00042542,120]
[421306487,1777400999710,-561.10585039,0.00042542,120]
[421306488,1777400999757,-502.58358542,0.00042542,120]
[421306489,1777400999803,-500.0,0.00042542,120]
[421306490,1777400999847,-500.0,0.00042542,120]
[421306491,1777400999892,-631.08079402,0.00042542,120]
[421306492,1777400999936,-502.83900129,0.00042542,120]
[421306493,1777400999984,-500.0,0.00042542,120]
[421306494,1777401000039,-500.0,0.00042542,120]
[421306495,1777401000094,-500.0,0.00042542,120]
[421306496,1777401000142,-637.28860238,0.00042542,120]
[421306497,1777401000191,-500.0,0.00042542,120]
[421306498,1777401000240,-500.0,0.00042542,120]
[421306499,1777401000289,-500.0,0.00042542,120]
[421306500,1777401000339,-500.0,0.00042542,120]
[421306501,1777401000388,-222.595106,0.00042542,120]
[421306502,1777401000436,-500.0,0.00042542,120]
[421306503,1777401000486,-500.0,0.00042542,120]
[421306504,1777401000536,-500.0,0.00042542,120]
[421306505,1777401000586,-500.0,0.00042542,120]
[421306506,1777401000636,-620.31558855,0.00042542,120]
[421306507,1777401000685,-500.0,0.00042542,120]
[421306508,1777401000734,-500.0,0.00042542,120]
[421306509,1777401000783,-500.0,0.00042542,120]
[421306510,1777401000831,-500.0,0.00042542,120]
[421306511,1777401000881,-500.0,0.00042542,120]
[421306512,1777401000929,-500.0,0.00042542,120]
[421306513,1777401000979,-500.0,0.00042542,120]
[421306514,1777401001027,-500.0,0.00042542,120]
[421306515,1777401001076,-500.0,0.00042542,120]
[421306516,1777401001125,-500.0,0.00042542,120]
[421306517,1777401001173,-276.75262441,0.00042542,120]
[421306518,1777401001220,-245.02396087,0.00042542,120]
[421306519,1777401001268,-500.0,0.00042542,120]
[421306520,1777401001315,-151.0,0.00042542,30]
[421306521,1777401001361,-500.0,0.00042542,120]
[421306522,1777401001409,-266.92662578,0.00042542,120]
[421306523,1777401001456,-500.0,0.00042542,120]
[421306524,1777401001502,-500.0,0.00042542,120]
[421306525,1777401001549,-500.0,0.00042542,120]
[421306526,1777401001595,-361.95509189,0.00042542,120]
[421306527,1777401001642,-500.0,0.00042542,120]
[421306528,1777401001689,-500.0,0.00042542,120]
[421306529,1777401001735,-178.94721407,0.00042542,120]
[421306530,1777401001781,-500.0,0.00042542,120]
[421306531,1777401001829,-502.50617799,0.00042542,120]
[421306532,1777401001876,-500.0,0.00042542,60]
[421306533,1777401001923,-509.18568844,0.00042542,120]
[421306534,1777401001969,-379.86178039,0.00042542,60]
[421306535,1777401002019,-500.0,0.00042542,120]
[421306536,1777401002067,-500.0,0.00042542,120]
[421306537,1777401002115,-500.0,0.00042542,120]
[421306538,1777401002163,-198.49836274,0.00042542,120]
[421306539,1777401002212,-551.43014168,0.00042542,120]
[421306540,1777401002260,-512.65633467,0.00042542,120]
[421306541,1777401002309,-500.0,0.00042542,120]
[421306542,1777401002356,-369.69913625,0.00042542,120]
[421306543,1777401002571,-500.0,0.00042542,120]
[421306544,1777401002620,-500.0,0.00042542,120]
[421306545,1777401002668,-500.0,0.00042542,120]
[421306546,1777401002715,-387.97924258,0.00042542,120]
[421306547,1777401002765,-500.0,0.00042542,120]
[421306548,1777401002821,-368.72681055,0.00042542,120]
[421306549,1777401002872,-500.0,0.00042542,120]
[421306550,1777401002921,-500.0,0.00042542,120]
[421306551,1777401002970,-328.41682039,0.00042542,120]
[421306552,1777401003017,-500.0,0.00042542,120]
[421306553,1777401003065,-500.0,0.00042542,120]
[421306554,1777401003114,-500.0,0.00042542,120]
[421306555,1777401003160,-500.0,0.00042542,120]
[421306556,1777401003208,-500.0,0.00042542,120]
[421306557,1777401003255,-500.0,0.00042542,120]
[421306558,1777401003300,-355.14711267,0.00042542,120]
[421306559,1777401003347,-500.0,0.00042542,120]
[421306560,1777401003394,-500.0,0.00042542,120]
[421306561,1777401003439,-500.0,0.00042542,120]
[421306562,1777401003485,-500.0,0.00042542,120]
[421306563,1777401003531,-393.25667373,0.00042542,120]
[421306564,1777401003578,-503.02582195,0.00042542,120]
[421306565,1777401003626,-503.39274129,0.00042542,120]
[421306566,1777401003672,-500.0,0.00042542,120]
[421306567,1777401003718,-500.0,0.00042542,120]
[421306568,1777401003764,-500.0,0.00042542,120]
[421306569,1777401003811,-500.0,0.00042542,120]
[421306570,1777401003859,-500.0,0.00042542,120]
[421306571,1777401003906,-500.0,0.00042542,120]
[421306572,1777401003953,-502.19025679,0.00042542,120]
[421306573,1777401003999,-500.0,0.00042542,120]
[421306574,1777401004044,-274.93362698,0.00042542,120]
[421306575,1777401004090,-1008.32,0.00042542,120]
[421306576,1777401004135,-1008.32,0.00042542,120]
[421306577,1777401004182,-1008.32,0.00042542,120]
[421306578,1777401004228,-1008.32,0.00042542,120]
[421306579,1777401004274,-1008.32,0.00042542,120]
[421306580,1777401004321,-1008.32,0.00042542,120]
[421306581,1777401004372,-1008.32,0.00042542,120]
[421306582,1777401004424,-1008.32,0.00042542,120]
[421306583,1777401004473,-1008.32,0.00042542,120]
[421306584,1777401004520,-1008.32,0.00042542,120]
[421306585,1777401004567,-1008.32,0.00042542,120]
[421306586,1777401004615,-500.0,0.00042542,120]
[421306587,1777401004663,-500.0,0.00042542,120]
[421306588,1777401004709,-1008.32,0.00042542,120]
[421306589,1777401004757,-1008.32,0.00042542,120]
[421306590,1777401004806,-500.0,0.00042542,120]
[421306591,1777401004854,-532.01417175,0.00042542,120]
[421306592,1777401004901,-272.26127459,0.00042542,120]
[421306593,1777401004947,-1008.32,0.00042542,120]
[421306594,1777401004994,-1008.32,0.00042542,120]
[421306595,1777401005041,-1008.32,0.00042542,120]
[421306596,1777401005089,-1008.32,0.00042542,120]
[421306597,1777401005136,-1008.32,0.00042542,120]
[421306598,1777401005184,-1008.32,0.00042542,120]
[421306599,1777401005233,-1008.32,0.00042542,120]
[421306600,1777401005285,-1008.32,0.00042542,120]
[421306601,1777401005335,-500.0,0.00042542,120]
[421306602,1777401005385,-1008.32,0.00042542,120]
[421306603,1777401005435,-1008.32,0.00042542,120]
[421306604,1777401005485,-1008.43098325,0.00042542,120]
[421306605,1777401005533,-251.82523249,0.00042542,120]
[421306606,1777401005585,-50000.0,0.00042542,42]
[421306607,1777401005634,-501.45405833,0.00042542,120]
[421306608,1777401005681,-505.96448666,0.00042542,120]
[421306609,1777401005730,-544.20023222,0.00042542,120]
[421306610,1777401005778,-502.42578304,0.00042542,120]
[421306611,1777401005827,-502.43987073,0.00042542,120]
[421306612,1777401005875,-168.66998935,0.00042542,120]
[421306613,1777401005922,-501.76440873,0.00042542,120]
[421306614,1777401005969,-500.0,0.00042542,120]
[421306615,1777401006016,-500.0,0.00042542,120]
[421306616,1777401006063,-500.0,0.00042542,120]
[421306617,1777401006109,-623.12943859,0.00042542,120]
[421306618,1777401006154,-502.52701523,0.00042542,120]
[421306619,1777401006200,-392.73,0.00042542,30]
[421306620,1777401006246,-151.0,0.00042542,30]
[421306621,1777401006293,-183.42,0.00042542,30]
[421306622,1777401006341,-500.0,0.00042542,120]
[421306623,1777401006388,-151.0,0.00042542,30]
[421306624,1777401006435,-500.0,0.00042542,120]
[421306625,1777401006480,-503.18837134,0.00042542,120]
[421306626,1777401006526,-172.73851577,0.00042542,120]
[421306627,1777401006583,-500.0,0.00042542,120]
[421306628,1777401006632,-500.0,0.00042542,120]
[421306629,1777401006681,-500.0,0.00042542,120]
[421306630,1777401006729,-500.0,0.00042542,120]
[421306631,1777401006777,-575.31808873,0.00042542,120]
[421306632,1777401006825,-502.39588136,0.00042542,120]
[421306633,1777401006874,-500.0,0.00042542,120]
[421306634,1777401006922,-461.55973427,0.00042542,120]
[421306635,1777401006969,-578.6970031,0.00042542,120]
[421306636,1777401007017,-592.9553984,0.00042542,120]
[421306637,1777401007065,-500.0,0.00042542,120]
[421306638,1777401007114,-503.90379409,0.00042542,120]
[421306639,1777401007163,-645.44016585,0.00042542,120]
[421306640,1777401007213,-500.0,0.00042542,120]
[421306641,1777401007262,-502.55929146,0.00042542,120]
[421306642,1777401007311,-500.0,0.00042542,120]
[421306643,1777401007362,-306.89190202,0.00042542,120]
[421306644,1777401007416,-500.0,0.00042542,120]
[421306645,1777401007465,-500.0,0.00042542,120]
[421306646,1777401007514,-500.0,0.00042542,120]
[421306647,1777401007830,-468.44,0.00042542,120]
[421306648,1777401007887,-500.0,0.00042542,120]
[421306649,1777401007941,-500.0,0.00042542,120]
[421306650,1777401007991,-500.0,0.00042542,120]
[421306651,1777401008041,-500.0,0.00042542,120]
[421306652,1777401008089,-500.0,0.00042542,120]
[421306653,1777401008136,-159.99926251,0.00042542,120]
[421306654,1777401008185,-500.0,0.00042542,120]
[421306655,1777401008233,-500.0,0.00042542,120]
[421306656,1777401008280,-411.48297572,0.00042542,120]
[421306657,1777401008327,-515.62942751,0.00042542,120]
[421306658,1777401008373,-500.0,0.00042542,120]
[421306659,1777401008423,-500.0,0.00042542,120]
[421306660,1777401008469,-289.80133933,0.00042542,120]
[421306661,1777401008517,-500.0,0.00042542,120]
[421306662,1777401008563,-500.0,0.00042542,120]
[421306663,1777401008611,-162.07988177,0.00042542,120]
[421306664,1777401008660,-500.0,0.00042542,120]
[421306665,1777401008708,-355.29570424,0.00042542,120]
[421306666,1777401008757,-500.0,0.00042542,120]
[421306667,1777401008807,-500.0,0.00042542,120]
[421306668,1777401008857,-504.42614468,0.00042542,120]
[421306669,1777401008909,-500.0,0.00042542,120]
[421306670,1777401008957,-500.0,0.00042542,120]
[421306671,1777401009006,-500.0,0.00042542,120]
[421306672,1777401009053,-273.53487135,0.00042542,120]
[421306673,1777401009101,-537.43818936,0.00042542,120]
[421306674,1777401009148,-500.0,0.00042542,120]
[421306675,1777401009196,-500.0,0.00042542,120]
[421306676,1777401009244,-500.0,0.00042542,120]
[421306677,1777401009291,-269.04695207,0.00042542,120]
[421306678,1777401009338,-519.2744972,0.00042542,120]
[421306679,1777401009385,-500.0,0.00042542,120]
[421306680,1777401009433,-392.76343857,0.00042542,120]
[421306681,1777401009481,-500.0,0.00042542,120]
[421306682,1777401009528,-500.0,0.00042542,120]
[421306683,1777401009577,-240.59565799,0.00042542,120]
[421306684,1777401009624,-502.23887103,0.00042542,120]
[421306685,1777401009681,-538.46489015,0.00042542,120]
[421306686,1777401009736,-506.37271468,0.00042542,120]
[421306687,1777401009787,-557.0679907,0.00042542,120]
[421306688,1777401009835,-504.48991559,0.00042542,120]
[421306689,1777401009884,-1472.06,0.00042542,120]
[421306690,1777401009931,-615.57982389,0.00042542,120]
[421306691,1777401009981,-271.60465094,0.00042542,120]
[421306692,1777401010030,-1472.06,0.00042542,120]
[421306693,1777401010077,-1472.06,0.00042542,120]
[421306694,1777401010126,-1472.06,0.00042542,120]
[421306695,1777401010174,-503.1791335,0.00042542,120]
[421306696,1777401010224,-1472.06,0.00042542,120]
[421306697,1777401010275,-1472.06,0.00042542,120]
[421306698,1777401010326,-1472.06,0.00042542,120]
[421306699,1777401010378,-1472.06,0.00042542,120]
[421306700,1777401010428,-1472.06,0.00042542,120]
[421306701,1777401010477,-1472.06,0.00042542,120]
[421306702,1777401010528,-1472.06,0.00042542,120]
[421306703,1777401010579,-1472.06,0.00042542,120]
[421306704,1777401010628,-1472.06,0.00042542,120]
[421306705,1777401010677,-1472.06,0.00042542,120]
[421306706,1777401010726,-1472.06,0.00042542,120]
[421306707,1777401010775,-1472.06,0.00042542,120]
[421306708,1777401010823,-162.935538,0.00042542,120]
[421306709,1777401010872,-162.935538,0.00042542,120]
[421306710,1777401010921,-162.935538,0.00042542,120]
[421306711,1777401010969,-505.22237668,0.00042542,120]
[421306712,1777401011018,-500.25,0.00042542,120]
[421306713,1777401011069,-167.430966,0.00042542,120]
[421306714,1777401011119,-162.935537,0.00042542,120]
[421306715,1777401011171,-500.25,0.00042542,120]
[421306716,1777401011222,-167.430966,0.00042542,120]
[421306717,1777401011272,-500.25,0.00042542,120]
[421306718,1777401011322,-500.25,0.00042542,120]
[421306719,1777401011373,-1472.06,0.00042542,120]
[421306720,1777401011423,-167.430966,0.00042542,120]
[421306721,1777401011476,-500.25,0.00042542,120]
[421306722,1777401011525,-167.430966,0.00042542,120]
[421306723,1777401011575,-500.25,0.00042542,120]
[421306724,1777401011623,-1472.06,0.00042542,120]
[421306725,1777401011673,-167.430966,0.00042542,120]
[421306726,1777401011721,-500.25,0.00042542,120]
[421306727,1777401011770,-1472.06,0.00042542,120]
[421306728,1777401011819,-167.430966,0.00042542,120]
[421306729,1777401011868,-500.25,0.00042542,120]
[421306730,1777401011917,-1472.06,0.00042542,120]
[421306731,1777401011966,-500.25,0.00042542,120]
[421306732,1777401012014,-500.25,0.00042542,120]
[421306733,1777401012063,-1472.06,0.00042542,120]
[421306734,1777401012111,-500.25,0.00042542,120]
[421306735,1777401012160,-1472.06,0.00042542,120]
[421306736,1777401012209,-1472.06,0.00042542,120]
[421306737,1777401012258,-500.25,0.00042542,120]
[421306738,1777401012308,-500.25,0.00042542,120]
[421306739,1777401012354,-1472.18855268,0.00042542,120]
[421306740,1777401012400,-500.25,0.00042542,120]
[421306741,1777401012446,-500.25,0.00042542,120]
[421306742,1777401012492,-500.25,0.00042542,120]
[421306743,1777401012537,-500.25,0.00042542,120]
[421306744,1777401012582,-500.25,0.00042542,120]
[421306745,1777401012627,-500.25,0.00042542,120]
[421306746,1777401012672,-500.25,0.00042542,120]
[421306747,1777401012719,-500.25,0.00042542,120]
[421306748,1777401012769,-500.25,0.00042542,120]
[421306749,1777401012817,-500.25,0.00042542,120]
[421306750,1777401013060,-500.38657993,0.00042542,120]
[421306751,1777401013107,-503.09928041,0.00042542,120]
[421306752,1777401013154,-500.0,0.00042542,120]
[421306753,1777401013201,-500.0,0.00042542,120]
[421306754,1777401013248,-500.0,0.00042542,120]
[421306755,1777401013294,-500.0,0.00042542,120]
[421306756,1777401013340,-500.0,0.00042542,120]
[421306757,1777401013390,-500.0,0.00042542,120]
[421306758,1777401013437,-467.77407197,0.00042542,120]
[421306759,1777401013489,-500.0,0.00042542,120]
[421306760,1777401013538,-509.45270145,0.00042542,120]
[421306761,1777401013585,-520.30194646,0.00042542,120]
[421306762,1777401013631,-500.0,0.00042542,120]
[421306763,1777401013678,-642.53102699,0.00042542,120]
[421306764,1777401013723,-603.79426158,0.00042542,120]
[421306765,1777401013769,-500.0,0.00042542,120]
[421306766,1777401013816,-500.0,0.00042542,120]
[421306767,1777401013863,-500.0,0.00042542,120]
[421306768,1777401013910,-301.10642605,0.00042542,120]
[421306769,1777401013957,-567.40979775,0.00042542,120]
[421306770,1777401014004,-574.53021629,0.00042542,120]
[421306771,1777401014050,-500.0,0.00042542,120]
[421306772,1777401014096,-530.07283636,0.00042542,120]
[421306773,1777401014145,-500.0,0.00042542,120]
[421306774,1777401014193,-500.0,0.00042542,120]
[421306775,1777401014241,-502.81023131,0.00042542,120]
[421306776,1777401014288,-157.93703799,0.00042542,120]
[421306777,1777401014335,-605.16652178,0.00042542,120]
[421306778,1777401014381,-515.17881092,0.00042542,120]
[421306779,1777401014426,-503.2204395,0.00042542,120]
[421306780,1777401014471,-399.0537273,0.00042542,120]
[421306781,1777401014517,-500.0,0.00042542,120]
[421306782,1777401014564,-170.0479544,0.00042542,120]
[421306783,1777401014611,-500.0,0.00042542,120]
[421306784,1777401014659,-632.78112552,0.00042542,120]
[421306785,1777401014707,-605.06532358,0.00042542,120]
[421306786,1777401014753,-630.6843263,0.00042542,120]
[421306787,1777401014798,-509.28476222,0.00042542,120]
[421306788,1777401014846,-503.96322771,0.00042542,120]
[421306789,1777401014894,-507.27163303,0.00042542,120]
[421306790,1777401014939,-157.93497873,0.00042542,120]
[421306791,1777401014985,-500.0,0.00042542,120]
[421306792,1777401015032,-500.0,0.00042542,120]
[421306793,1777401015078,-342.63356849,0.00042542,120]